Workbook

Sheet Sheet1 (hidden)
H1: =H2/D4 -> -513000 | I1: =H1*D7 -> -2052000 | J1: =I1+H10 -> -252000
F2: =H7*F10 -> 0 | G2: =H7*G10 -> 0 | H2: =H5+H4 -> -2052000 | J2: =H7+G4 -> 0
E3: =F3/D8 -> 0 | F3: =G4+G3 -> 0 | G3: =H7-G7 -> 0 | H3: =H7+H4 -> -252000
B4: =E4*D4*C4 -> 0 | C4: =C7 -> 0.035 | D4: =D7 -> 4 | E4: =H7-F7 -> 0 | F4: =J2 -> 0 | G4: =D8*C8*G3 -> 0 | H4: =H5*D4*C4 -> -252000
B5: =H7+B7 -> 0 | D5: =E5/D4 -> 0 | E5: =B4+E4 -> 0 | F5: =H10 -> 1800000 | H5: =H7-F5 -> -1800000 | J5: =J1 -> -252000
B6: سودحاصل ازاقساط | C6: درصد/سود | D6: تعداداقساط | E6: مانده(بدون سود%) | F6: نقدی | H6: مبلغ کل
B7: =B4 -> 0 | C7: 0.035 | D7: =Sheet3!L6 -> 4 | E7: =E4 -> 0 | F7: =F2 -> 0 | G7: =G2 -> 0 | H7: =Sheet3!Q4 -> 0 | Q7: =C12*D7 -> 0
B8: =G4 -> 0 | C8: 0.027 | D8: =Sheet3!L5 -> 6 | E8: =H7-G7 -> 0
B9: اقساط(%50) | C9: مانده(بدون سود+نقد) | E9: مانده(+ سود) | F9: درصد | H9: مبلغ نقد
B10: =F4 -> 0 | C10: =H5+B7 -> -1800000 | E10: =E7+B7 -> 0 | F10: =Sheet3!O4 -> 0.3 | G10: =Sheet3!O5 -> 0.3 | H10: =Sheet3!P6 -> 1800000 | Q10: =Q7+B7 -> 0
B11: TOTAL | E11: اقساط(%30) | H11: مبلغ قسط (نقد)
B12: =B5 -> 0 | C12: =D5 -> 0 | G12: =E3 -> 0 | H12: =H1 -> -513000
H13: TOTAL
F14: =H14-H7 -> -252000 | H14: =J5 -> -252000

Sheet Sheet2 (hidden)
A2: مابه اتفاوت سود | B2: سود حاصل بانکی | C2: مبلغ | D2: تعداد روز | E2: % سود
A3: =Sheet1!B7-B3 -> 0 | B3: =F6 -> 0 | C3: =Sheet1!E7 -> 0 | D3: 30 | E3: 25 | F3: 36500 | G3: 36500 | I3: × 30 × 19 ÷ 36500 | J3: =Sheet1!H7-Sheet1!H10 -> -1800000
B4: =G6 -> -36986.30137 | C4: =J3 -> -1800000 | F4: =E3*D3 -> 750 | G4: =E3*D3 -> 750
F5: =F4*C3 -> 0 | G5: =F4*C4 -> -1350000000
F6: =F5/F3 -> 0 | G6: =G5/G3 -> -36986.30137
F8: 36500
C9: مبلغ کل: | D9: 20000000 | F9: =E8*D8 -> 0
B10: مابه التفاوت سود ماه | C10: =B3*D12 -> 0 | D10: =D9*E10 -> 9000000 | E10: 0.45 | F10: =F9*C8 -> 0
B11: پرداختی ماهیانه +مابه التفاوت سود ماه | C11: =D11+C10 -> 7200000 | D11: =D9*E11 -> 7200000 | E11: 0.36 | F11: =F10/F8 -> 0
B12: ضرر: | C12: =D10-C11 -> 1800000 | D12: 7 | E12: ماه
D13: =E3 -> 25 | E13: درصدسود
B14: پرداختی ماهیانه 36%: | C14: =D11 -> 7200000

Sheet Sheet3 (hidden)
H2: مبلغ کل | J2: مبلغ هرقسط | K2: سودمتعلقه | L2: تعداداقساط | M2: مانده | P2: درصد | Q2: مبلغ کل | R2: ردیف
X3: =L4 -> 4 | Y3: =I4 -> 0.035
H4: =V6 -> 0 | I4: 0.035 | J4: =V4 -> 0 | K4: =X4 -> 0 | L4: =Sheet5!I5 -> 4 | M4: =Sheet1!E7 -> 0 | N4: =Sheet1!F7 -> 0 | O4: =Sheet5!J5 -> 0.3 | P4: =Sheet1!F10 -> 0.3 | Q4: =Sheet5!D5 -> 0 | R4: 1 | V4: =W4/X3 -> 0 | W4: =M4+X4 -> 0 | X4: =Y4*X3 -> 0 | Y4: =M4*Y3 -> 0
H5: =Sheet1!B10 -> 0 | I5: 4 | J5: =Sheet1!G12 -> 0 | K5: =Sheet1!B10 -> 0 | L5: 6 | M5: =Q5-Sheet1!G7 -> 0 | N5: =Sheet1!G7 -> 0 | O5: 0.3 | P5: =Sheet1!G10 -> 0.3 | Q5: =Q4 -> 0 | R5: 2 | V5: =V4*X3 -> 0
H6: =Sheet1!H14 -> -252000 | J6: =Sheet1!H12 -> -513000 | K6: =Sheet1!F14 -> -252000 | L6: 4 | M6: =Q6-P6 -> -1800000 | O6: 1800000 | P6: =O6 -> 1800000 | Q6: =Q5 -> 0 | R6: 3 | V6: =V5+N4 -> 0

Sheet Sheet4 (hidden)
G2: مبلغ هریک ازاقساط | H2: مبلغ کل
E4: 1 | G4: =Sheet3!J4 -> 0 | H4: =Sheet3!H4 -> 0
F5: äÞÏí | G5: ãÈáÛ ˜á
E6: 2 | G6: =Sheet3!J6 -> -513000 | H6: =Sheet3!H6 -> -252000

Sheet Sheet5
K1: درصورتی که نتوانستید اعداد را تغییر دهیدروی نوشته قرمزرنگ بالا کلیک کنید سپس Edit Enyway را کلیک کنید
C3: واریان سیستم | D3: مبلغ نقدی گوشی را اینجا وارد کنید! | H3: http://variansystem.ir/ | K3: تعدادماه را اینجا واردکنید... | Q3: VARIANSYSTEM.IR
B5: مبلغ نقدی گوشی معادل | F5: میباشد. | G5: تعداد اقساط ازیک الی شش ماه : >> | I5: 4 | J5: 0.3
B6: مبلغ پیش پرداخت شما | D6: =Sheet3!N4 -> 0 | E6: معادل | F6: =J5 -> 0.3 | G6: کل مبلغ میباشد.
B7: مبلغ هریک ازاقساط به مدت | D7: =I5 -> 4 | F7: ماه | G7: معادل | H7: =Sheet4!G4 -> 0 | I7: میباشد. | L7: درصدپیش پرداخت بین بیست تاسی درصد%
B9: مبلغ کل پرداختی وسود%3,5 | D9: =I5 -> 4 | F9: ماهه | G9: معادل | H9: =Sheet4!H4 -> 0 | I9: میباشد.
D13: شماره واتساپ جهت مشاوره فروش اقساطی: | H13: 0939-428-3969
